bitfinex-derivatives/quotes_SOLF0:USTF0_20251201
["timestamp","ask_amount","ask_price","bid_price","bid_amount"]
[1764555448927,3.18,128.32,128.3,0.05987559]
[1764555451329,0.05126582,128.33,128.3,7.436496]
[1764555451537,0.05126582,128.33,128.31,3.37]
[1764555452738,0.05126582,128.33,128.32,7.37662041]
[1764555453635,0.05126582,128.33,128.31,3.37]
[1764555453930,0.05126582,128.33,128.32,4.00662041]
[1764555454140,0.05126582,128.33,128.32,7.37662041]
[1764555455324,3.18,128.38,128.33,3.37]
[1764555455527,3.18,128.41,128.38,3.37]
[1764555455728,3.18,128.41,128.35,3.37]
[1764555455927,3.18,128.4,128.35,3.37]
[1764555456330,3.2363655,128.39,128.36,0.0581082]
[1764555456529,3.2363655,128.39,128.36,3.4281082]
[1764555457129,3.2363655,128.39,128.36,0.0581082]
[1764555459639,3.18,128.38,128.36,0.0581082]
[1764555465744,46.09054277,128.43,128.36,3.4281082]
[1764555465745,7.23204737,128.42,128.36,3.4281082]
[1764555465953,3.18,128.41,128.37,3.37]
[1764555466443,3.18,128.41,128.34,10.3823]
[1764555466644,9.15931652,128.4,128.35,3.37]
[1764555466843,3.23581533,128.39,128.36,0.05705165]
[1764555467046,3.23581533,128.39,128.36,3.42705165]
[1764555471147,3.23581533,128.39,128.36,0.05705165]
[1764555471334,3.29,128.37,128.36,0.05705165]
[1764555473853,9.2166404,128.37,128.3,3.11]
[1764555474152,9.2166404,128.36,128.3,3.11]
[1764555474351,3.29,128.38,128.32,3.11]
[1764555474648,9.21678824,128.37,128.32,3.11]
[1764555474847,0.05896003,128.36,128.33,0.05839305]
[1764555475051,0.05896003,128.36,128.34,3.11]
[1764555477754,3.34896003,128.36,128.33,3.16839305]
[1764555477946,3.34896003,128.36,128.33,0.05839305]
[1764555478455,3.29,128.34,128.33,0.05839305]
[1764555478649,9.22140947,128.34,128.27,7.11637808]
[1764555478850,3.29,128.33,128.27,7.11637808]
[1764555479754,0.05903612,128.31,128.29,3.16654489]
[1764555479949,0.05966687,128.31,128.29,7.17292297]
[1764555482451,7.23204737,128.39,128.3,3.11]
[1764555482650,9.22271687,128.38,128.34,7.11637808]
[1764555482856,3.29,128.38,128.34,7.11637808]
[1764555483059,10.3002,128.38,128.34,7.11637808]
[1764555483564,0.05839257,128.37,128.35,0.0500065]
[1764555484860,3.34839257,128.37,128.35,0.0500065]
[1764555485664,0.05839257,128.37,128.35,3.1600065]
[1764555486061,0.05839257,128.37,128.35,7.16638458]
[1764555486766,0.05839257,128.37,128.36,3.11]
[1764555489065,3.29,128.41,128.36,3.11]
[1764555489265,3.29,128.41,128.37,7.11637808]
[1764555489959,7.0081,128.42,128.39,7.11637808]
[1764555490170,0.05560688,128.42,128.39,7.17019409]
[1764555490372,3.34560688,128.42,128.39,7.17019409]
[1764555490774,10.35370688,128.42,128.39,4.06019409]
[1764555491868,10.35370688,128.42,128.39,0.05381601]
[1764555492270,10.35370688,128.42,128.39,3.16381601]
[1764555492575,3.29,128.41,128.39,0.05381601]
[1764555498179,7.06370688,128.42,128.39,0.05381601]
[1764555498180,3.34560688,128.42,128.39,7.17019409]
[1764555499780,3.34560688,128.42,128.39,3.16381601]
[1764555499976,3.18,128.4,128.35,4.00637808]
[1764555500275,3.18,128.38,128.33,7.24637808]
[1764555500481,3.18,128.36,128.33,7.24637808]
[1764555500779,3.18,128.38,128.33,7.24637808]
[1764555501081,3.23944272,128.37,128.34,3.29980418]
[1764555501275,3.23944272,128.37,128.34,0.05980418]
[1764555501880,3.23944272,128.37,128.34,3.29980418]
[1764555504881,3.23944272,128.37,128.34,0.05980418]
[1764555505273,3.23944272,128.37,128.34,3.31980418]
[1764555506382,3.23944272,128.37,128.35,2.56243209]
[1764555507386,3.23944272,128.37,128.34,0.05980418]
[1764555508987,3.23944272,128.37,128.34,3.31980418]
[1764555509495,0.05944272,128.37,128.35,5.82243209]
[1764555509788,19.21366191,128.42,128.35,5.82243209]
[1764555509789,7.23204737,128.42,128.36,3.26]
[1764555510090,3.18,128.4,128.37,2.56243209]
[1764555510793,3.23308918,128.4,128.37,2.61395264]
[1764555512385,3.23308918,128.4,128.38,3.26]
[1764555512386,0.05308918,128.4,128.38,3.26]
[1764555512590,0.05308918,128.4,128.39,5.82243209]
[1764555513592,3.18,128.44,128.4,3.26]
[1764555513892,9.17617018,128.43,128.41,2.56243209]
[1764555514085,3.18,128.43,128.41,2.56243209]
[1764555514690,3.23579725,128.43,128.41,2.61238587]
[1764555514984,0.05579725,128.43,128.41,5.87238587]
[1764555515189,0.05579725,128.43,128.42,3.26]
[1764555516091,0.05579725,128.43,128.41,2.61238587]
[1764555516389,0.05579725,128.43,128.41,5.87238587]
[1764555517782,3.23579725,128.43,128.41,0.04995378]
[1764555527196,3.18,128.41,128.35,3.26]
[1764555527404,5.74243209,128.39,128.35,2.56243209]
[1764555527602,3.18,128.38,128.34,2.56243209]
[1764555527808,3.18,128.38,128.35,3.26]
[1764555528002,3.18,128.4,128.36,2.56243209]
[1764555528201,3.18,128.38,128.37,0.05523722]
[1764555528498,9.17482112,128.38,128.37,0.05523722]
[1764555532702,3.17,128.37,128.33,2.56243209]
[1764555533007,3.17,128.37,128.33,5.87243209]
[1764555533809,3.21927433,128.36,128.34,0.05469499]
[1764555536406,3.21927433,128.36,128.29,3.31]
[1764555536407,10.1828,128.34,128.29,3.31]
[1764555536608,3.17,128.32,128.28,5.87243209]
[1764555536813,3.17,128.32,128.29,3.31]
[1764555537005,3.17,128.32,128.3,2.56243209]
[1764555537605,3.22687284,128.32,128.3,2.62196592]
[1764555538206,0.05687284,128.32,128.31,3.31]
[1764555540808,3.22687284,128.32,128.3,2.62196592]
[1764555541014,0.05687284,128.32,128.3,5.93196592]
[1764555545812,3.22687284,128.32,128.3,5.93196592]
[1764555546014,0.05687284,128.32,128.3,5.93196592]
[1764555546815,0.05687284,128.32,128.31,3.31]
[1764555547111,7.0115,128.36,128.31,3.31]
[1764555547317,3.17,128.39,128.35,5.87243209]
[1764555547519,9.14577891,128.38,128.35,5.87243209]
[1764555547708,3.17,128.38,128.35,5.87243209]
[1764555547909,3.17,128.38,128.35,2.56243209]
[1764555548308,3.22493163,128.38,128.35,2.61664516]
[1764555548618,3.22493163,128.38,128.35,5.92664516]
[1764555548919,3.22493163,128.38,128.37,2.56243209]
[1764555549518,0.05493163,128.38,128.37,2.56243209]
[1764555550419,0.05493163,128.38,128.36,2.56243209]
[1764555550420,3.22493163,128.38,128.36,2.56243209]
[1764555554409,3.17,128.37,128.36,2.56243209]
[1764555556621,10.1808,128.37,128.35,0.05421307]
[1764555556821,3.17,128.36,128.35,2.61664516]
[1764555557414,3.17,128.36,128.35,0.05421307]
[1764555557611,3.17,128.34,128.32,2.56243209]
[1764555558627,3.21973398,128.34,128.32,2.61605145]
[1764555558820,0.04973398,128.34,128.32,5.92605145]
[1764555560425,0.04973398,128.34,128.33,5.71243209]
[1764555566630,3.15973398,128.34,128.32,0.05361936]
[1764555567731,0.04973398,128.34,128.32,3.45361936]
[1764555567947,0.04973398,128.34,128.33,2.56243209]
[1764555568343,13.06837948,128.34,128.32,3.45361936]
[1764555568546,7.06233398,128.34,128.32,3.45361936]
[1764555569747,0.04973398,128.34,128.32,3.45361936]
[1764555570344,0.04973398,128.34,128.33,7.40503488]
[1764555571544,6.06921234,128.34,128.32,0.05361936]
[1764555571737,0.04973398,128.34,128.32,3.45361936]
[1764555571943,3.15973398,128.34,128.32,3.45361936]
[1764555572442,6.02170122,128.33,128.32,3.45361936]
[1764555573743,9.13170122,128.33,128.32,0.05361936]
[1764555576649,3.11,128.31,128.29,3.4]
[1764555576843,10.1236,128.32,128.29,3.4]
[1764555577247,3.11,128.32,128.29,3.4]
[1764555577647,3.15989564,128.32,128.29,7.45877169]
[1764555577950,9.13506889,128.31,128.29,4.05877169]
[1764555578151,3.11,128.31,128.29,4.05877169]
[1764555578353,3.11,128.31,128.29,7.45877169]
[1764555580958,3.15989564,128.32,128.29,3.45373681]
[1764555581157,6.02363705,128.31,128.29,7.45877169]
[1764555581358,3.15989564,128.32,128.29,7.45877169]
[1764555581657,6.02301084,128.31,128.29,7.45877169]
[1764555581855,3.15989564,128.32,128.29,7.45877169]
[1764555582046,6.02301084,128.31,128.29,7.45877169]
[1764555582249,3.15989564,128.32,128.29,7.45877169]
[1764555582447,6.02289759,128.31,128.29,7.45877169]
[1764555582758,0.04989564,128.32,128.3,3.4]
[1764555582957,0.04989564,128.32,128.31,7.40503488]
[1764555583258,3.15989564,128.32,128.29,7.45877169]
[1764555585260,3.15989564,128.32,128.29,0.05373681]
[1764555585456,3.11,128.3,128.29,0.05373681]
[1764555585763,3.11,128.29,128.25,3.4]
[1764555585957,9.13289578,128.28,128.25,3.4]
[1764555586158,3.11,128.28,128.25,3.4]
[1764555586564,3.16321011,128.28,128.25,3.45036608]
[1764555589964,3.19,128.27,128.25,0.05036608]
[1764555590959,10.2063,128.27,128.25,0.05036608]
[1764555591160,9.19739337,128.26,128.25,0.05036608]
[1764555591963,3.19,128.24,128.21,4.00503488]
[1764555592262,3.19,128.22,128.16,93.46]
[1764555592463,3.19,128.18,128.16,93.46]
[1764555592665,3.19,128.18,128.15,3.37]
[1764555592865,3.24545121,128.18,128.15,3.37]
[1764555593659,3.24545121,128.18,128.14,4.00503488]
[1764555593864,3.24545121,128.18,128.14,7.37503488]
[1764555595161,3.24545121,128.18,128.15,3.37]
[1764555598573,3.24545121,128.18,128.16,4.00503488]
[1764555598772,3.24545121,128.18,128.14,7.37503488]
[1764555600374,3.19,128.17,128.14,7.37503488]
[1764555600575,3.19,128.17,128.15,3.37]
[1764555600763,0.05545121,128.18,128.15,3.37]
[1764555601077,0.05545121,128.18,128.17,3.37]
[1764555601277,3.24545121,128.18,128.16,4.00503488]
[1764555601774,3.24545121,128.18,128.16,3.37]
[1764555602076,3.24545121,128.18,128.13,3.37]
[1764555602276,3.24545121,128.18,128.15,7.37503488]
[1764555602781,3.24545121,128.18,128.15,4.00503488]
[1764555603678,0.05545121,128.18,128.16,3.37]
[1764555605369,3.24545121,128.18,128.16,3.37]
[1764555605576,3.24545121,128.18,128.15,7.37503488]
[1764555606474,3.19,128.17,128.15,4.00503488]
[1764555607976,3.19,128.15,128.11,3.37]
[1764555608181,3.23977101,128.14,128.1,4.00503488]
[1764555608474,3.24856155,128.13,128.1,3.37]
[1764555608669,7.0255,128.1,128.09,4.00503488]
[1764555608875,10.2155,128.1,128.09,4.00503488]
[1764555609466,3.19,128.08,128.03,4.72857896]
[1764555609671,3.19,128.06,128.03,4.00503488]
[1764555610174,7.0284,128.05,128.03,4.00503488]
[1764555610581,10.2184,128.05,128.01,3.37]
[1764555610775,0.0581593,128.04,128.03,4.00503488]
[1764555612183,3.2481593,128.04,128.02,4.00503488]
[1764555612381,3.2481593,128.04,127.99,3.37]
[1764555612580,3.2481593,128.04,128.01,7.37503488]
[1764555613285,0.0581593,128.04,128.02,4.00503488]
[1764555614570,0.0581593,128.04,128.02,7.37503488]
[1764555615975,0.0581593,128.04,128.03,3.37]
[1764555618878,0.0581593,128.04,128.02,4.00503488]
[1764555619079,0.0581593,128.04,128.02,7.37503488]
[1764555622597,0.0581593,128.04,128.03,3.16]
[1764555623293,7.028,128.06,128.03,3.16]
[1764555623493,7.028,128.06,128.05,4.00503488]
[1764555624282,7.028,128.06,128.0,7.0308]
[1764555624283,3.16,128.03,128.0,3.16]
[1764555624696,3.16,128.03,127.97,4.00503488]
[1764555625000,3.16,128.03,127.97,7.15503488]
[1764555625294,10.21325151,128.01,127.98,3.15]
[1764555625688,7.08325151,128.01,128.0,3.15]
[1764555625893,7.08325151,128.01,127.99,7.15503488]
[1764555626190,0.05275151,128.01,127.99,7.15503488]
[1764555626393,0.05275151,128.01,128.0,3.15]
[1764555627390,7.0296,128.03,128.0,3.15]
[1764555627586,7.0296,128.03,128.02,4.00503488]
[1764555630101,0.05177818,128.04,128.02,4.00503488]
[1764555630398,5.96203876,128.03,128.01,3.20727885]
[1764555630598,3.18177818,128.04,128.02,2.57561589]
[1764555630799,5.9642498,128.03,128.02,2.57561589]
[1764555633202,5.9642498,128.03,128.01,3.20727885]
[1764555633396,10.21077818,128.04,128.01,3.20727885]
[1764555633397,5.9642498,128.02,128.01,3.20727885]
[1764555634493,5.9642498,128.02,128.01,5.78289474]
[1764555638602,3.13,128.1,128.02,3.15]
[1764555638800,3.13,128.1,128.07,2.57561589]
[1764555639596,3.18880646,128.1,128.07,2.63352109]
[1764555640200,3.18880646,128.1,128.07,0.0579052]
[1764555640401,3.18880646,128.1,128.07,2.63352109]
[1764555643308,3.13,128.09,128.07,2.63352109]
[1764555646625,0.05880646,128.1,128.07,2.63352109]
[1764555646907,0.05880646,128.1,128.09,2.57561589]
[1764555647702,0.05880646,128.1,128.07,0.0579052]
[1764555647899,3.18880646,128.1,128.07,2.63352109]
[1764555649013,10.1562,128.09,128.07,2.63352109]
[1764555649214,0.05880646,128.1,128.07,2.63352109]
[1764555649514,3.13,128.15,128.09,2.57561589]
[1764555649708,3.13,128.15,128.11,2.57561589]
[1764555650115,10.4041,128.13,128.11,2.57561589]
[1764555650316,3.38,128.12,128.11,2.62909014]
[1764555650516,9.13516973,128.12,128.11,2.62909014]
[1764555651107,3.38,128.1,128.09,2.57561589]
[1764555651406,9.13516973,128.1,128.04,7.0287]
[1764555651606,3.38,128.08,128.07,2.57561589]
[1764555652108,12.78544986,128.08,128.06,0.05236974]
[1764555652308,10.46017013,128.08,128.06,0.05236974]
[1764555653104,3.38,128.07,128.06,0.05236974]
[1764555653411,10.46017013,128.08,128.06,0.05236974]
[1764555654318,3.38,128.07,128.06,0.05236974]
[1764555655012,3.38,128.06,127.95,23.58596717]
[1764555655215,3.38,128.03,127.98,2.57561589]
[1764555655415,5.76771172,128.02,128.0,2.57561589]
[1764555655716,3.38,128.04,128.0,2.57561589]
[1764555655918,3.38,128.04,128.02,2.57561589]
[1764555656111,0.05176118,128.03,128.02,2.57561589]
[1764555656312,0.05176118,128.03,128.01,0.05774454]
[1764555659013,3.43176118,128.03,128.01,0.05774454]
[1764555659411,0.05176118,128.03,128.01,0.05774454]
[1764555660723,3.43176118,128.03,128.01,0.05774454]
[1764555661628,3.38,128.02,128.01,0.05774454]
[1764555664528,3.38,128.01,127.96,7.0331]
[1764555665422,3.38,128.01,127.96,14.18773492]
[1764555665617,0.05496882,128.0,127.96,14.18773492]
[1764555668425,7.028,128.06,127.99,14.18613492]
[1764555668620,3.38,128.05,128.02,7.15463492]
[1764555669525,3.42922009,128.05,128.02,7.2138787]
[1764555670230,3.38,128.04,128.02,0.05924378]
[1764555671325,3.38,128.03,128.02,0.05924378]
[1764555671725,10.4089,128.04,128.02,0.05924378]
[1764555672225,3.42922009,128.05,128.02,0.05924378]
[1764555673032,10.45762009,128.05,128.02,0.05924378]
[1764555673931,3.38,128.04,128.02,0.05924378]
[1764555676431,3.38,128.04,128.02,2.6348101]
[1764555677135,10.4089,128.04,128.02,2.6348101]
[1764555677327,3.38,128.03,128.02,2.6348101]
[1764555679333,3.38,128.03,128.02,0.05924378]
[1764555681426,7.0289,128.04,128.02,0.05924378]
[1764555681630,0.04922009,128.05,128.03,2.57556632]
[1764555683331,10.1168,128.08,128.03,2.57556632]
[1764555683535,8.9498129,128.07,128.06,2.57556632]
[1764555684035,5.8598129,128.07,128.06,2.57556632]
[1764555684337,0.05182164,128.08,128.06,2.57556632]
[1764555684528,5.09133664,128.13,128.06,2.57556632]
[1764555684727,5.86211009,128.12,128.11,2.57556632]
[1764555684928,10.1636,128.14,128.01,62.0]
[1764555685233,3.14,128.13,128.12,2.57556632]
[1764555686431,3.14,128.13,128.11,0.05394935]
[1764555686936,3.14,128.11,128.05,14.17165769]
[1764555687932,0.05849446,128.09,128.07,0.05044221]
[1764555689232,3.19849446,128.09,128.07,0.05044221]
[1764555691233,10.22489446,128.09,128.07,0.05044221]
[1764555691640,3.14,128.08,128.07,0.05044221]
[1764555692828,3.14,128.08,127.95,37.31395728]
[1764555692829,3.14,128.06,127.98,11.20469192]
[1764555693029,3.14,128.06,127.98,38.06469192]
[1764555693239,3.14,128.06,127.98,11.20469192]
[1764555693830,0.05456856,128.03,128.01,0.05334825]
[1764555694034,3.19456856,128.03,128.01,0.05334825]
[1764555697834,10.22406856,128.03,128.01,0.05334825]
[1764555698042,3.14,128.02,128.01,0.05334825]
[1764555699540,7.0309,128.01,127.96,26.86]
[1764555699743,3.14,128.0,127.96,26.86]
[1764555700532,0.05363245,127.99,127.96,26.86]
[1764555700842,3.19363245,127.99,127.96,26.86]
[1764555701438,3.19363245,127.99,127.95,18.23829192]
[1764555704138,0.05363245,127.99,127.97,7.0326]
[1764555708345,7.0297,128.03,127.97,7.0326]
[1764555709452,0.05376,128.01,127.99,0.04996638]
[1764555711556,8.62,128.06,127.99,0.04996638]
[1764555711743,8.62,128.06,128.01,7.0303]
[1764555711945,8.62,128.06,128.01,18.23499192]
[1764555712647,0.05791923,128.05,128.02,0.05330677]
[1764555713037,0.05791923,128.05,128.02,16.71330677]
[1764555713440,0.05791923,128.05,128.02,23.74300677]
[1764555713641,0.05791923,128.05,128.02,16.71330677]
[1764555714948,0.05791923,128.05,128.02,26.91330677]
[1764555715352,3.10390022,128.06,128.03,7.0292]
[1764555715652,6.23390022,128.06,128.03,7.0292]
[1764555716246,6.29028145,128.06,128.02,26.91330677]
[1764555717045,6.29028145,128.06,128.02,0.05330677]
[1764555717046,3.13,128.04,128.02,0.05330677]
[1764555721947,10.18808145,128.06,128.02,0.05330677]
[1764555721948,3.16028145,128.06,128.02,0.05330677]
[1764555722758,3.16028145,128.06,128.03,11.20469192]
[1764555724058,3.16028145,128.06,128.04,7.0286]
[1764555730658,3.16028145,128.06,128.02,11.25799869]
[1764555730859,3.13,128.05,128.02,0.05330677]
[1764555732263,3.13,128.04,128.02,0.05330677]
[1764555736766,3.13,128.04,128.02,0.00330677]
[1764555738673,3.18638123,128.06,128.02,0.00330677]
[1764555743973,0.05638123,128.06,128.02,11.20799869]
[1764555745472,0.05638123,128.06,128.04,7.0287]
[1764555746280,3.35638123,128.06,128.04,7.0287]
[1764555747074,0.05638123,128.06,128.04,7.0287]
[1764555748381,0.05638123,128.06,128.05,4.02161132]
[1764555751678,4.87,128.07,128.05,11.04981132]
[1764555752278,4.87,128.07,128.05,4.02161132]
[1764555752473,8.17,128.07,128.06,2.57341466]
[1764555753483,4.87,128.07,128.06,2.57341466]
[1764555753884,8.17,128.07,128.06,2.57341466]
[1764555754284,3.3,128.06,128.05,0.05404797]
[1764555754483,8.17,128.07,128.05,2.62746263]
[1764555756085,4.87,128.07,128.05,2.62746263]
[1764555756685,8.17,128.07,128.05,2.62746263]
[1764555757288,3.3,128.06,128.05,2.62746263]
[1764555757688,4.87,128.07,128.05,2.62746263]
[1764555758786,0.05247209,128.08,128.05,2.62746263]
[1764555758990,3.3,128.14,128.07,2.57341466]
[1764555759184,3.3,128.12,128.1,2.57341466]
[1764555759393,3.3,128.15,128.11,2.57341466]
[1764555759592,3.3,128.15,128.13,2.57341466]
[1764555759986,7.0207,128.19,128.13,2.62263526]
[1764555760191,0.05002812,128.15,128.13,0.0492206]
[1764555760697,3.35002812,128.15,128.13,0.0492206]
[1764555761398,3.35002812,128.15,128.14,2.57341466]
[1764555764000,3.35002812,128.15,128.13,0.0492206]
[1764555765293,10.37312812,128.15,128.13,0.0492206]
[1764555765495,3.3,128.14,128.13,0.0492206]
[1764555768806,3.3,128.13,128.11,2.57341466]
[1764555770002,3.3,128.13,128.11,2.62628418]
[1764555770204,3.11,128.11,128.07,2.57341466]
[1764555770705,3.11,128.09,128.07,2.57341466]
[1764555771306,3.11,128.08,128.07,0.05183456]
[1764555772201,0.05484886,128.09,128.07,2.62524922]
[1764555774012,3.16484886,128.09,128.07,0.05183456]
[1764555774207,3.11,128.08,128.03,2.57341466]
[1764555774712,2.57341466,128.09,128.03,2.57341466]
[1764555774713,3.11,128.06,128.03,2.57341466]
[1764555775307,3.16760052,128.06,128.03,2.62852603]
[1764555776403,3.16760052,128.06,128.03,0.05511137]
[1764555777211,0.05760052,128.06,128.03,0.05511137]
[1764555779403,3.16760052,128.06,128.03,0.05511137]
[1764555779603,0.05760052,128.06,128.03,0.05511137]
[1764555781411,3.16760052,128.06,128.03,0.05511137]
[1764555784714,3.11,128.05,128.03,0.05511137]
[1764555785509,0.05760052,128.06,128.03,0.05511137]
[1764555786016,3.16760052,128.06,128.03,0.05511137]
[1764555796122,3.11,128.05,128.03,0.05511137]
[1764555798428,3.11,128.08,128.04,2.57456412]
[1764555798631,3.11,128.08,128.0,26.84]
[1764555798632,3.11,128.13,128.07,2.57456412]
[1764555798832,3.11,128.13,128.11,2.57456412]
[1764555799228,3.11,128.13,128.0,14.50620136]
[1764555799429,3.11,128.11,128.06,2.57456412]
[1764555799627,3.11,128.07,128.06,2.57456412]
[1764555799822,3.11,128.07,128.01,0.98]
[1764555800028,3.11,128.07,128.03,2.57456412]
[1764555800729,3.11,128.07,127.99,23.57056426]
[1764555800926,3.11,128.07,128.04,2.57456412]
[1764555801229,3.33,128.04,128.02,2.63306163]
[1764555801426,3.38750423,128.04,128.02,2.63306163]
[1764555802334,3.33,128.03,128.02,2.63306163]
[1764555803235,3.33,128.03,128.02,0.05849751]
[1764555803437,3.33,128.03,128.02,2.63306163]
[1764555806834,0.05750423,128.04,128.02,2.63306163]
[1764555808443,3.17,128.06,128.02,2.63306163]
[1764555808637,3.17,128.06,128.05,2.57456412]
[1764555809039,3.17,128.06,128.02,0.05849751]
[1764555809245,3.17,128.06,128.05,2.57456412]
[1764555814336,3.17,128.06,128.04,4.02244828]
[1764555814541,3.21928128,128.07,128.04,4.02244828]
[1764555814746,3.21928128,128.07,128.06,4.02244828]
[1764555814747,0.04928128,128.07,128.06,4.02244828]
[1764555814945,0.04928128,128.07,128.05,0.05063622]
[1764555815145,0.04928128,128.07,128.06,4.02244828]
[1764555816641,7.20184143,128.13,128.06,4.02244828]
[1764555816847,3.17,128.11,128.09,4.02244828]
[1764555817241,3.17,128.1,128.07,4.02244828]
[1764555817749,3.22816168,128.1,128.07,4.08032251]
[1764555818640,10.25386168,128.1,128.07,4.08032251]
[1764555818843,3.17,128.09,128.07,4.08032251]
[1764555819246,10.1961,128.09,128.07,4.08032251]
[1764555819853,0.05816168,128.1,128.07,4.08032251]
[1764555820153,0.05816168,128.1,128.09,4.02244828]
[1764555820645,3.17,128.13,128.09,4.02244828]
[1764555820850,7.0245,128.12,128.11,4.02244828]
[1764555821150,10.1945,128.12,128.11,4.02244828]
[1764555821938,3.17,128.12,128.11,4.02244828]
[1764555822138,3.17,128.12,128.1,0.05217896]
[1764555823443,3.17,128.11,128.1,0.05217896]
[1764555824848,7.0248,128.12,128.1,0.05217896]
[1764555825353,10.1948,128.12,128.1,0.05217896]
[1764555827053,3.17,128.12,128.1,0.05217896]
[1764555827241,3.17,128.11,128.1,0.05217896]
[1764555830949,3.22497935,128.13,128.1,0.05217896]
[1764555831148,3.22497935,128.13,128.11,4.02244828]
[1764555834653,3.22497935,128.13,128.1,0.05217896]
[1764555835353,3.17,128.12,128.1,0.05217896]
[1764555836361,10.1947,128.12,128.1,0.05217896]
[1764555836560,3.17,128.11,128.1,0.05217896]
[1764555837958,10.1947,128.12,128.1,0.05217896]
[1764555838159,3.17,128.12,128.1,0.05217896]
[1764555840055,10.1945,128.12,128.1,0.05217896]
[1764555840661,3.17,128.11,128.1,0.05217896]
[1764555841362,3.17,128.12,128.1,0.05217896]
[1764555841558,0.05497935,128.13,128.1,0.05217896]
[1764555841756,3.22497935,128.13,128.1,0.05217896]
[1764555842359,3.17,128.11,128.1,0.05217896]
[1764555844356,0.05497935,128.13,128.1,0.05217896]
[1764555844561,3.22497935,128.13,128.1,0.05217896]
[1764555846360,3.17,128.11,128.1,0.05217896]
[1764555846967,3.17,128.09,128.03,11.05144828]
[1764555847163,3.17,128.09,128.03,4.02244828]
[1764555847557,3.17,128.07,128.01,11.05244828]
[1764555848060,0.05695217,128.05,128.03,4.08140124]
[1764555850174,3.22695217,128.05,128.03,4.08140124]
[1764555850566,3.22695217,128.05,128.03,0.05895296]
[1764555852064,3.17,128.04,128.03,0.05895296]
[1764555856971,3.17,128.03,127.99,4.02244828]
[1764555857873,0.05600591,128.02,128.0,0.04930137]
[1764555859476,0.05600591,128.02,128.01,4.02244828]
[1764555860278,10.217,128.08,128.01,11.05274828]
[1764555860581,3.19,128.07,128.04,4.02244828]
[1764555860875,3.19,128.08,128.06,4.02244828]
[1764555861270,3.24865349,128.08,128.06,4.0795272]
[1764555862075,3.24865349,128.08,128.06,0.05707892]
[1764555863478,10.27545349,128.08,128.06,0.05707892]
[1764555863977,3.19,128.07,128.06,0.05707892]
[1764555867077,3.19,128.07,127.98,42.74582822]
[1764555867078,3.11,128.04,128.0,4.02244828]
[1764555867966,3.1612156,128.03,128.01,0.05709172]
[1764555868171,3.17007434,128.03,128.01,0.05649982]
[1764555868471,10.19957434,128.03,128.01,0.05649982]
[1764555870984,0.06007434,128.03,128.01,0.05649982]
[1764555871174,9.65477624,128.12,128.01,0.05649982]
[1764555871175,3.11,128.08,128.02,5.58244828]
[1764555871370,3.11,128.1,128.06,4.02244828]
[1764555871575,3.11,128.1,128.04,4.02244828]
[1764555871974,3.11,128.08,128.04,4.02244828]
[1764555872174,7.0261,128.09,128.05,0.05244057]
[1764555872175,3.16369364,128.07,128.05,0.05244057]
[1764555874380,3.16369364,128.07,128.06,2.57426228]
[1764555874984,3.11,128.05,128.02,2.57426228]
[1764555875584,3.11,128.03,128.02,2.57426228]
[1764555877883,3.11,128.03,127.96,1.35950776]
[1764555878187,3.11,128.01,127.98,2.57426228]
[1764555879084,3.16467762,128.01,127.98,2.63262167]
[1764555879282,3.11,127.99,127.98,0.05835939]
[1764555879488,3.11,127.99,127.96,2.57426228]
[1764555879684,3.11,127.99,127.95,2.57426228]
[1764555879884,3.11,127.97,127.95,2.57426228]
[1764555880487,3.16980775,127.97,127.95,2.60101251]
[1764555884397,3.16980775,127.97,127.95,0.02675023]
[1764555885997,3.11,127.96,127.95,0.02675023]
[1764555888692,7.09270775,127.97,127.95,3.39675023]
[1764555888896,10.20270775,127.97,127.95,0.02675023]
[1764555889194,3.11,127.96,127.95,0.02675023]
[1764555892085,3.17980775,127.97,127.95,0.02675023]
[1764555894793,3.12,127.96,127.94,4.57349529]
[1764555895399,3.12,127.95,127.9,7.1618468]
[1764555895892,3.12,127.93,127.9,7.1618468]
[1764555896200,3.12,127.92,127.9,7.1618468]
[1764555896592,3.17905374,127.94,127.91,3.29]
[1764555898098,3.17905374,127.94,127.89,10.4518468]